bitfinex/quotes_BTCUSD_20250423
["timestamp","ask_amount","ask_price","bid_price","bid_amount"]
[1745383337538,0.12513461,93087.0,93080.0,0.01220738]
[1745383337738,0.21486435,93082.0,93080.0,0.01220738]
[1745383338153,0.0107431,93083.0,93080.0,0.01220738]
[1745383338334,0.00506786,93081.0,93080.0,0.01220738]
[1745383338689,0.01074275,93086.0,93081.0,0.21486662]
[1745383338885,0.00506786,93081.0,93080.0,0.01220738]
[1745383339090,0.0107431,93083.0,93080.0,0.01220738]
[1745383339315,0.01074275,93086.0,93081.0,0.01074333]
[1745383339504,0.01583489,93085.0,93081.0,0.01074333]
[1745383340672,0.00509203,93085.0,93081.0,0.01074333]
[1745383341686,0.01583489,93085.0,93081.0,0.01074333]
[1745383344950,0.01074298,93084.0,93081.0,0.01074333]
[1745383345383,0.01565377,93084.0,93081.0,0.01074333]
[1745383346696,0.01565377,93084.0,93080.0,0.35220738]
[1745383346922,0.01565377,93084.0,93080.0,0.36295082]
[1745383348469,0.00491079,93084.0,93080.0,0.36295082]
[1745383348678,0.01565377,93084.0,93080.0,0.36295082]
[1745383355781,0.0107431,93083.0,93080.0,0.36295082]
[1745383356241,0.00477695,93083.0,93080.0,0.36295082]
[1745383356692,0.01552005,93083.0,93080.0,0.36295082]
[1745383359217,0.01552005,93083.0,93080.0,0.35220738]
[1745383361294,0.23038399,93083.0,93080.0,0.35220738]
[1745383361525,0.22560704,93083.0,93080.0,0.35220738]
[1745383361713,0.0107431,93083.0,93080.0,0.35220738]
[1745383362917,0.22560716,93083.0,93080.0,0.35220738]
[1745383363605,0.0107431,93083.0,93080.0,0.35220738]
[1745383363776,0.22560487,93084.0,93080.0,0.35220738]
[1745383364109,0.01074298,93084.0,93080.0,0.35220738]
[1745383364320,0.0107431,93083.0,93080.0,0.35220738]
[1745383366165,0.01074298,93084.0,93080.0,0.36295082]
[1745383366842,0.01074298,93084.0,93080.0,0.57781974]
[1745383367155,0.01074298,93084.0,93081.0,0.01074333]
[1745383370163,0.01074286,93085.0,93081.0,0.01074333]
[1745383371851,0.01074286,93085.0,93081.0,0.00715007]
[1745383372285,0.22559992,93086.0,93081.0,0.00715007]
[1745383372697,0.01074286,93085.0,93081.0,0.00715007]
[1745383373232,0.01074286,93085.0,93082.0,0.01074321]
[1745383373823,0.0107424,93089.0,93083.0,0.0107431]
[1745383374026,0.01074263,93087.0,93083.0,0.0107431]
[1745383374215,0.01074275,93086.0,93083.0,0.0107431]
[1745383374422,0.01074275,93086.0,93082.0,0.01074321]
[1745383374675,0.01074275,93086.0,93083.0,0.0107431]
[1745383375509,0.01074275,93086.0,93080.0,0.5778193]
[1745383375510,0.01074286,93085.0,93080.0,0.36295082]
[1745383375900,0.01074286,93085.0,93082.0,0.01074321]
[1745383376132,0.01174275,93086.0,93082.0,0.01074321]
[1745383377088,0.01074275,93086.0,93083.0,0.0107431]
[1745383377300,0.001,93085.0,93082.0,0.01074321]
[1745383378205,0.001,93086.0,93083.0,0.0107431]
[1745383378566,0.001,93085.0,93083.0,0.0107431]
[1745383378928,0.001,93085.0,93082.0,0.01074321]
[1745383379130,0.0590431,93083.0,93080.0,0.35220738]
[1745383379760,0.20786431,93082.0,93080.0,0.35220738]
[1745383379962,0.0590431,93083.0,93080.0,0.35220738]
[1745383380962,0.001,93082.0,93080.0,0.35220738]
[1745383381167,0.0590431,93083.0,93080.0,0.35220738]
[1745383381991,0.0600431,93083.0,93080.0,0.35220738]
[1745383383514,0.0117431,93083.0,93080.0,0.36295082]
[1745383384415,0.001,93083.0,93080.0,0.36295082]
[1745383384565,0.001,93083.0,93081.0,0.21486662]
[1745383385369,0.001,93083.0,93080.0,0.36295082]
[1745383386291,0.01074263,93087.0,93083.0,0.0107431]
[1745383387471,0.00374263,93087.0,93083.0,0.0107431]
[1745383387670,0.01174263,93087.0,93083.0,0.0107431]
[1745383388894,0.01074275,93086.0,93081.0,0.22560995]
[1745383389250,0.01074298,93084.0,93080.0,0.36295082]
[1745383389453,0.01074275,93086.0,93080.0,0.36295082]
[1745383389862,0.01074275,93086.0,93082.0,0.01074321]
[1745383390411,0.01174275,93086.0,93082.0,0.01074321]
[1745383390616,0.01074275,93086.0,93082.0,0.01074321]
[1745383391947,0.01174275,93086.0,93082.0,0.01074321]
[1745383394719,0.001,93086.0,93082.0,0.01074321]
[1745383395112,0.01174275,93086.0,93082.0,0.01074321]
[1745383395287,0.00474275,93086.0,93082.0,0.01074321]
[1745383397546,0.22560049,93085.0,93081.0,0.01074333]
[1745383399163,0.22560267,93084.0,93080.0,0.35220738]
[1745383399372,0.0107431,93083.0,93080.0,0.35220738]
[1745383402090,0.00474275,93086.0,93081.0,0.01074333]
[1745383402319,0.01074286,93085.0,93081.0,0.01074333]
[1745383402729,0.01074286,93085.0,93082.0,0.01074321]
[1745383402931,0.00474275,93086.0,93082.0,0.01074321]
[1745383403259,0.01074286,93085.0,93081.0,0.01074333]
[1745383404037,0.01074286,93085.0,93082.0,0.01074321]
[1745383407600,0.01074252,93088.0,93084.0,0.01074298]
[1745383408101,0.01074263,93087.0,93084.0,0.01074298]
[1745383408510,0.01074252,93088.0,93081.0,0.00872477]
[1745383408847,0.01074263,93087.0,93084.0,0.01074298]
[1745383409051,0.01074263,93087.0,93083.0,0.0107431]
[1745383409252,0.01074275,93086.0,93082.0,0.01074321]
[1745383410171,0.05974136,93098.0,93089.0,0.0107424]
[1745383410367,0.01074148,93097.0,93092.0,0.01074206]
[1745383410568,0.62683207,93096.0,93090.0,0.01074229]
[1745383410770,0.01074263,93087.0,93082.0,0.01074321]
[1745383411003,0.01074263,93087.0,93080.0,0.56707414]
[1745383411823,0.01074263,93087.0,93082.0,0.01074321]
[1745383412415,0.01174263,93087.0,93082.0,0.01074321]
[1745383412837,0.01074263,93087.0,93082.0,0.01074321]
[1745383417462,0.01074263,93087.0,93083.0,0.0107431]
[1745383418359,0.21485174,93088.0,93083.0,0.0107431]
[1745383418736,0.01174263,93087.0,93083.0,0.0107431]
[1745383420381,0.01174263,93087.0,93084.0,0.01074298]
[1745383421421,0.01174263,93087.0,93084.0,0.0107014]
[1745383421577,0.01074263,93087.0,93084.0,0.0107014]
[1745383421777,0.01174263,93087.0,93084.0,0.0107014]
[1745383423165,0.001,93087.0,93084.0,0.22556054]
[1745383423523,0.001,93087.0,93086.0,0.21485508]
[1745383423681,0.001,93087.0,93086.0,0.55485508]
[1745383424595,0.01074171,93095.0,93091.0,0.01074217]
[1745383425151,0.01074148,93097.0,93092.0,0.01074206]
[1745383425739,0.01074148,93097.0,93094.0,0.01074183]
[1745383425885,0.002,93095.0,93094.0,0.01074183]
[1745383426087,0.0107416,93096.0,93092.0,0.01074206]
[1745383428275,0.0117416,93096.0,93092.0,0.01074206]
[1745383429506,0.00601016,93095.0,93092.0,0.01074206]
[1745383432817,0.00574148,93097.0,93092.0,0.01074206]
[1745383433147,0.00601223,93096.0,93092.0,0.01074206]
[1745383434132,0.01074136,93098.0,93094.0,0.01074183]
[1745383434332,0.001,93096.0,93094.0,0.01074183]
[1745383434541,0.001,93096.0,93092.0,0.01074206]
[1745383434730,0.0117416,93096.0,93092.0,0.01074206]
[1745383435203,0.0107416,93096.0,93092.0,0.01074206]
[1745383436291,0.0107416,93096.0,93091.0,0.01074217]
[1745383436504,0.0107416,93096.0,93092.0,0.01074206]
[1745383437353,0.0117416,93096.0,93092.0,0.01074206]
[1745383440236,0.001,93096.0,93092.0,0.01074206]
[1745383440646,0.0117416,93096.0,93092.0,0.01074206]
[1745383441847,0.00474148,93097.0,93092.0,0.01074206]
[1745383442801,0.00474148,93097.0,93093.0,0.01074194]
[1745383446824,0.01074136,93098.0,93094.0,0.01074183]
[1745383450896,0.01074148,93097.0,93093.0,0.01074194]
[1745383451321,0.09576,93100.0,93095.0,0.01074171]
[1745383451511,0.0558409,93102.0,93101.0,0.21482046]
[1745383451512,0.0451,93102.0,93101.0,0.21482046]
[1745383451662,0.0452,93111.0,93107.0,0.21480452]
[1745383451869,0.50776,93111.0,93108.0,0.01074021]
[1745383452070,0.50776,93111.0,93109.0,0.214802]
[1745383452271,0.412,93111.0,93109.0,0.214802]
[1745383452700,0.412,93111.0,93109.0,0.22648271]
[1745383453052,0.0961847,93122.0,93120.0,0.21477663]
[1745383453260,0.00051009,93121.0,93120.0,0.21477663]
[1745383453475,0.00051009,93121.0,93120.0,0.2169242]
[1745383453677,0.00051009,93121.0,93120.0,0.21477663]
[1745383453895,0.00051009,93121.0,93120.0,0.21692404]
[1745383455290,0.00051009,93121.0,93120.0,0.21477663]
[1745383455505,0.00051009,93121.0,93120.0,0.21692405]
[1745383455701,0.00051009,93121.0,93120.0,0.21792405]
[1745383455903,0.00051009,93121.0,93120.0,0.4132072]
[1745383456066,0.00051009,93121.0,93120.0,0.41105995]
[1745383456477,0.0004247,93123.0,93120.0,0.41105995]
[1745383456478,0.0004247,93123.0,93122.0,0.55477201]
[1745383456689,0.0004247,93126.0,93125.0,0.5547651]
[1745383456899,0.0004247,93126.0,93125.0,0.66306815]
[1745383457108,0.0004247,93126.0,93125.0,0.70154842]
[1745383457317,0.0004247,93126.0,93125.0,0.66306815]
[1745383457735,0.0004247,93126.0,93125.0,0.66706815]
[1745383458145,0.0004247,93126.0,93125.0,0.5587651]
[1745383458348,0.0004247,93126.0,93125.0,0.5617651]
[1745383459237,0.0004247,93126.0,93125.0,0.344]
[1745383460019,0.0004247,93126.0,93125.0,0.34]
[1745383460166,0.0004247,93126.0,93125.0,0.342]
[1745383460569,0.0004247,93126.0,93125.0,0.343]
[1745383460960,0.0004247,93126.0,93125.0,0.29437503]
[1745383461360,0.0004247,93126.0,93125.0,0.29237503]
[1745383461762,0.0004247,93126.0,93125.0,0.29437503]
[1745383462422,0.20860875,93128.0,93125.0,0.003]
[1745383463060,0.20960875,93128.0,93122.0,0.0107386]
[1745383463273,0.21477663,93120.0,93119.0,0.34]
[1745383463482,0.21479443,93113.0,93110.0,0.1306842]
[1745383463691,0.2147981,93111.0,93104.0,0.01074067]
[1745383463845,0.21479508,93112.0,93109.0,8.539e-05]
[1745383464434,0.21379508,93112.0,93109.0,0.01174706]
[1745383464637,0.21279508,93112.0,93109.0,8.539e-05]
[1745383464866,0.21279508,93112.0,93109.0,0.00208539]
[1745383465067,0.21279508,93112.0,93106.0,0.01074044]
[1745383465502,0.21479015,93115.0,93109.0,0.001]
[1745383465633,0.21479311,93113.0,93109.0,0.001]
[1745383466041,0.21479311,93113.0,93108.0,0.01074021]
[1745383466344,0.21479015,93115.0,93109.0,0.0107401]
[1745383466555,0.21479015,93115.0,93108.0,0.01074021]
[1745383466983,0.21479317,93113.0,93108.0,0.01074021]
[1745383467182,0.21479317,93113.0,93106.0,0.01274043]
[1745383467380,0.214802,93109.0,93106.0,0.01374043]
[1745383467602,0.214802,93109.0,93106.0,0.01274043]
[1745383467825,0.214802,93109.0,93106.0,0.01174043]
[1745383468154,0.214802,93109.0,93108.0,0.001]
[1745383468640,0.214802,93109.0,93103.0,0.34]
[1745383468936,0.214802,93109.0,93106.0,0.001]
[1745383469755,0.214802,93109.0,93106.0,0.0126524]
[1745383470071,0.207802,93109.0,93106.0,0.0136524]
[1745383470301,0.207802,93109.0,93106.0,0.0126524]
[1745383470578,0.207802,93109.0,93108.0,0.001]
[1745383471217,0.2195421,93109.0,93106.0,0.0126524]
[1745383471341,0.2195421,93109.0,93106.0,0.0136524]
[1745383471546,0.21480662,93107.0,93106.0,0.0126524]
[1745383471751,0.21480662,93107.0,93106.0,0.0116524]
[1745383471957,0.2195421,93109.0,93101.0,0.01074102]
[1745383471958,0.001,93109.0,93101.0,0.01074102]
[1745383472156,0.001,93109.0,93106.0,0.0377766]
[1745383472360,0.001,93109.0,93105.0,0.01074056]
[1745383472644,0.001,93109.0,93105.0,0.01158657]
[1745383472841,0.001,93109.0,93107.0,0.34]
[1745383473048,0.001,93109.0,93108.0,0.55480431]
[1745383473471,0.001,93109.0,93108.0,0.70088396]
[1745383473684,0.002,93109.0,93108.0,0.66310736]
[1745383474219,0.005,93109.0,93108.0,0.66310736]
[1745383474381,0.004,93109.0,93108.0,0.66310736]
[1745383474577,0.004,93109.0,93108.0,0.66410736]
[1745383474805,0.004,93109.0,93108.0,0.66510736]
[1745383475542,0.004,93109.0,93108.0,0.66410736]
[1745383477099,0.004,93109.0,93108.0,0.66610736]
[1745383477714,0.21478731,93117.0,93113.0,0.34]
[1745383477916,0.21478731,93117.0,93108.0,0.003]
[1745383477917,0.22553725,93111.0,93108.0,0.003]
[1745383478556,0.22553725,93111.0,93108.0,0.001]
[1745383478759,0.22553725,93111.0,93108.0,0.002]
[1745383479129,0.214802,93109.0,93108.0,0.002]
[1745383479448,0.36860505,93109.0,93108.0,0.002]
[1745383479597,0.36860505,93109.0,93108.0,0.001]
[1745383479814,0.36760505,93109.0,93108.0,0.001]
[1745383480018,0.21482046,93101.0,93100.0,0.01114184]
[1745383480212,0.01074136,93098.0,93091.0,0.35074217]
[1745383480419,0.01074136,93098.0,93091.0,0.35129477]
[1745383480623,0.01074183,93094.0,93091.0,0.35129477]
[1745383481040,0.0583416,93096.0,93091.0,0.01129477]
[1745383481214,0.0583416,93096.0,93088.0,0.01074252]
[1745383481415,0.01074194,93093.0,93088.0,0.01116581]
[1745383481620,0.01074171,93095.0,93091.0,0.002]
[1745383482040,0.01074183,93094.0,93091.0,0.002]
[1745383482237,0.0476,93096.0,93091.0,0.002]
[1745383482473,0.01074183,93094.0,93091.0,0.002]
[1745383482670,0.0476,93096.0,93091.0,0.002]
[1745383482891,0.01074183,93094.0,93088.0,0.01145568]
[1745383483088,0.01074183,93094.0,93091.0,0.001]
[1745383483285,0.01074183,93094.0,93091.0,0.002]
[1745383483830,0.01074183,93094.0,93091.0,0.001]
[1745383484081,0.0455,93092.0,93091.0,0.001]
[1745383485495,0.0385,93092.0,93091.0,0.001]
[1745383486437,0.01074217,93091.0,93088.0,0.01112701]
[1745383487133,0.21484584,93090.0,93088.0,0.01112701]
[1745383487343,0.01074286,93085.0,93081.0,0.34]
[1745383487547,0.01074263,93087.0,93081.0,0.34]
[1745383487745,0.01074263,93087.0,93081.0,0.34004675]
[1745383487911,0.01074252,93088.0,93081.0,0.35135381]
[1745383488295,0.09568,93089.0,93081.0,0.36209714]
[1745383488500,0.09568,93089.0,93085.0,0.01074286]
[1745383488685,0.09568,93089.0,93082.0,0.01074321]
[1745383489148,0.09568,93089.0,93083.0,0.0107431]
[1745383489900,0.09568,93089.0,93084.0,0.00335316]
[1745383490694,0.09568,93089.0,93084.0,0.01409614]
[1745383490919,0.09568,93089.0,93085.0,0.00335316]
[1745383491604,0.09568,93089.0,93085.0,0.01409602]
[1745383491805,0.09568,93089.0,93086.0,0.01074275]
[1745383492026,0.09568,93089.0,93088.0,0.34]
[1745383492807,0.09568,93089.0,93088.0,0.34335316]
[1745383493030,0.09568,93089.0,93088.0,0.00335316]
[1745383493217,0.09568,93089.0,93088.0,0.21485046]
[1745383494236,0.08868,93089.0,93088.0,0.21485046]
[1745383501825,0.412,93105.0,93101.0,0.21482041]
[1745383502078,0.412,93105.0,93102.0,0.22555905]
[1745383502079,0.09568,93104.0,93102.0,0.22555905]
[1745383504052,0.09868,93104.0,93102.0,0.22555905]
[1745383506300,0.0471,93103.0,93097.0,0.01074148]
[1745383506655,0.0471,93103.0,93096.0,0.34]
[1745383507162,0.0471,93103.0,93096.0,0.3507416]
[1745383507320,0.0471,93103.0,93097.0,0.01074148]
[1745383507523,0.0471,93103.0,93095.0,0.01074171]
[1745383507718,0.0471,93103.0,93096.0,0.0107416]
[1745383507945,0.0491,93103.0,93096.0,0.0107416]
[1745383508161,0.0491,93103.0,93097.0,0.01074148]
[1745383508994,0.0491,93103.0,93100.0,0.01074113]
[1745383509401,0.0471,93103.0,93100.0,0.01074113]
[1745383509578,0.002,93103.0,93097.0,0.01074148]
[1745383509985,0.09568,93104.0,93097.0,0.01074148]
[1745383510138,0.003,93103.0,93099.0,0.01074125]
[1745383510846,0.005,93103.0,93098.0,0.01074136]
[1745383511247,0.005,93103.0,93096.0,0.3507416]
[1745383511443,0.005,93103.0,93097.0,0.01074148]
[1745383511630,0.09568,93104.0,93098.0,0.01074136]
[1745383511830,0.09568,93104.0,93097.0,0.01074148]
[1745383512624,0.14278,93104.0,93097.0,0.01074148]
[1745383512804,0.003,93103.0,93094.0,0.21483478]
[1745383513103,0.003,93103.0,93097.0,0.22557049]
[1745383513329,0.14278,93104.0,93098.0,0.01074136]
[1745383513511,0.14478,93104.0,93097.0,0.01074148]
[1745383513881,0.14278,93104.0,93097.0,0.01074148]
[1745383514082,0.002,93103.0,93097.0,0.01074148]
[1745383514259,0.002,93103.0,93096.0,0.0107416]
[1745383515105,0.002,93103.0,93097.0,0.01074148]
[1745383515511,0.002,93103.0,93096.0,0.0107416]
[1745383515886,0.14278,93104.0,93096.0,0.0107416]
[1745383516073,0.14278,93104.0,93097.0,0.01074148]
[1745383516473,0.002,93103.0,93097.0,0.01074148]
[1745383516879,0.14278,93104.0,93096.0,0.22557131]
[1745383517080,0.14278,93104.0,93097.0,0.01074148]
[1745383517443,0.13778,93104.0,93097.0,0.01074148]
[1745383517575,0.13778,93104.0,93096.0,0.22557131]
[1745383517778,0.002,93103.0,93096.0,0.22557131]
[1745383518083,0.002,93103.0,93097.0,0.01074148]
[1745383518278,0.002,93103.0,93095.0,0.01074171]
[1745383518514,0.002,93103.0,93096.0,0.0107416]
[1745383518956,0.13578,93104.0,93096.0,0.0107416]
[1745383519385,0.13778,93104.0,93096.0,0.0107416]
[1745383519601,0.13578,93104.0,93096.0,0.0107416]
[1745383519813,0.002,93103.0,93097.0,0.01074148]
[1745383520031,0.002,93103.0,93096.0,0.0107416]
[1745383520375,0.002,93103.0,93097.0,0.01074148]
[1745383520594,0.002,93103.0,93096.0,0.0107416]
[1745383520595,0.002,93103.0,93092.0,0.22558329]
[1745383520854,0.13778,93104.0,93097.0,0.01074148]
[1745383521077,0.002,93103.0,93097.0,0.01074148]
[1745383521920,0.002,93103.0,93096.0,0.0107416]
[1745383522373,0.002,93103.0,93097.0,0.01074148]
[1745383522822,0.13578,93104.0,93097.0,0.01074148]
[1745383523039,0.13778,93104.0,93097.0,0.01074148]
[1745383523257,0.13578,93104.0,93097.0,0.01074148]
[1745383523527,0.002,93103.0,93095.0,0.01074171]
[1745383523744,0.002,93103.0,93094.0,0.01074183]
[1745383523958,0.002,93103.0,93095.0,0.01074171]
[1745383524355,0.13578,93104.0,93096.0,0.0107416]
[1745383524835,0.002,93103.0,93096.0,0.0107416]
[1745383525044,0.13078,93104.0,93096.0,0.0107416]
[1745383525676,0.13078,93104.0,93095.0,0.01074171]
[1745383525891,0.13078,93104.0,93090.0,0.19902161]
[1745383526195,0.13278,93104.0,93090.0,0.19902161]
[1745383526468,0.13278,93104.0,93095.0,0.22557538]
[1745383526682,0.13278,93104.0,93098.0,0.01074136]
[1745383526891,0.09564,93103.0,93096.0,0.0107416]
[1745383527505,0.09564,93103.0,93095.0,0.01074171]
[1745383527880,0.09564,93103.0,93096.0,0.0107416]
[1745383528648,0.09564,93103.0,93094.0,0.01074183]
[1745383528846,0.09564,93103.0,93095.0,0.01074171]
[1745383529016,0.09564,93103.0,93094.0,0.01074183]
[1745383529235,0.09664,93103.0,93096.0,0.0107416]
[1745383529438,0.09664,93103.0,93095.0,0.01074171]
[1745383529660,0.09664,93103.0,93096.0,0.0107416]
[1745383529984,0.09664,93103.0,93097.0,0.01074148]
[1745383530168,0.09564,93103.0,93097.0,0.01074148]
[1745383530319,0.09564,93103.0,93096.0,0.0107416]
[1745383530527,0.09564,93103.0,93097.0,0.01074148]
[1745383530943,0.09664,93103.0,93097.0,0.01074148]
[1745383531746,0.09664,93103.0,93096.0,0.0107416]
[1745383532130,0.09664,93103.0,93097.0,0.01074148]
[1745383532367,0.09564,93103.0,93097.0,0.01074148]
[1745383532565,0.09664,93103.0,93097.0,0.01074148]
[1745383532784,0.001,93103.0,93097.0,0.01074148]
[1745383532988,0.09564,93102.0,93097.0,0.01074148]
[1745383534137,0.09664,93102.0,93097.0,0.01074148]
[1745383534282,0.09664,93102.0,93096.0,0.22557327]
[1745383534504,0.09664,93102.0,93098.0,0.01074136]
[1745383535980,0.09564,93102.0,93097.0,0.01074148]
[1745383536142,0.09564,93102.0,93098.0,0.01074136]
[1745383536331,0.09764,93102.0,93098.0,0.01074136]
[1745383537275,0.09764,93102.0,93096.0,0.0107416]
[1745383537484,0.09764,93102.0,93097.0,0.01074148]
[1745383537900,0.09764,93102.0,93098.0,0.01074136]
[1745383538455,0.09564,93102.0,93098.0,0.01074136]
[1745383538683,0.09664,93102.0,93098.0,0.01074136]
[1745383539245,0.09864,93102.0,93098.0,0.01074136]
[1745383539643,0.09864,93102.0,93097.0,0.01074148]
[1745383540440,0.09164,93102.0,93097.0,0.01074148]
[1745383540701,0.09164,93102.0,93098.0,0.01074136]
[1745383541060,0.09164,93102.0,93097.0,0.01074148]
[1745383541266,0.09164,93102.0,93096.0,0.0107416]
[1745383542081,0.08864,93102.0,93096.0,0.0107416]
[1745383542539,0.08964,93102.0,93096.0,0.0107416]
[1745383542976,0.09064,93102.0,93097.0,0.01074148]
[1745383543179,0.09064,93102.0,93098.0,0.01074136]
[1745383543515,0.09064,93102.0,93096.0,0.0107416]
[1745383543910,0.09064,93102.0,93097.0,0.01074148]
[1745383544113,0.09064,93102.0,93096.0,0.0107416]
[1745383544319,0.09064,93102.0,93097.0,0.01074148]
[1745383545154,0.08864,93102.0,93097.0,0.01074148]
[1745383545448,0.09064,93102.0,93095.0,0.01074171]
[1745383545853,0.09064,93102.0,93096.0,0.0107416]
[1745383545997,0.09164,93102.0,93097.0,0.01074148]
[1745383546198,0.08864,93102.0,93097.0,0.01074148]
[1745383546604,0.08964,93102.0,93097.0,0.01074148]
[1745383546849,0.08964,93102.0,93095.0,0.01074171]
[1745383547047,0.09064,93102.0,93095.0,0.01074171]
[1745383547380,0.09064,93102.0,93096.0,0.0107416]
[1745383548076,0.08364,93102.0,93096.0,0.0107416]
[1745383548279,0.08164,93102.0,93096.0,0.0107416]
[1745383548619,0.08264,93102.0,93096.0,0.0107416]
[1745383549171,0.08364,93102.0,93096.0,0.0107416]
[1745383549557,0.08364,93102.0,93094.0,0.01074183]
[1745383549719,0.08364,93102.0,93095.0,0.01074171]
[1745383550164,0.01074171,93095.0,93079.0,0.34]
[1745383550359,0.01074194,93093.0,93081.0,0.02209714]
[1745383550566,0.01074263,93087.0,93081.0,0.01135381]
[1745383550875,0.01074252,93088.0,93081.0,0.01135381]
[1745383551093,0.53104511,93092.0,93081.0,0.01135381]
[1745383551315,0.53104511,93092.0,93081.0,0.02209714]
[1745383551462,0.53104511,93092.0,93081.0,0.01135381]
[1745383551663,0.52030305,93092.0,93081.0,0.02209714]
[1745383551863,0.52030305,93092.0,93081.0,0.36209714]
[1745383552067,0.01074217,93091.0,93081.0,0.36209714]
[1745383552267,0.09564,93090.0,93081.0,0.36209714]
[1745383552507,0.09564,93090.0,93082.0,0.01074321]
[1745383552667,0.09564,93090.0,93081.0,0.36209714]
[1745383552893,0.09564,93090.0,93081.0,0.36309714]
[1745383553144,0.09564,93090.0,93081.0,0.02309714]
[1745383553291,0.09564,93090.0,93081.0,0.02409714]
[1745383554094,0.09564,93090.0,93081.0,0.02509714]
[1745383554495,0.09564,93090.0,93081.0,0.02409714]
[1745383554698,0.09564,93090.0,93082.0,0.01074321]
[1745383555362,0.09564,93090.0,93085.0,0.01074286]
[1745383555585,0.09564,93090.0,93087.0,0.22559525]
[1745383555795,0.08864,93090.0,93088.0,0.21484834]
[1745383555993,0.412,93092.0,93089.0,0.0107424]
[1745383556211,0.09564,93091.0,93089.0,0.0107424]
[1745383556334,0.412,93092.0,93091.0,0.21484354]
[1745383556538,0.50764,93092.0,93091.0,0.21484354]
[1745383558061,0.50864,93092.0,93091.0,0.21484354]
[1745383558706,0.417,93092.0,93091.0,0.21484354]
[1745383560087,0.414,93092.0,93091.0,0.21484354]
[1745383560474,0.51164,93092.0,93091.0,0.21484354]
[1745383560694,0.09964,93092.0,93091.0,0.21484354]
[1745383560906,0.09764,93092.0,93091.0,0.21484354]
[1745383561124,0.09864,93092.0,93091.0,0.21484354]
[1745383561677,0.09864,93092.0,93091.0,0.55484354]
[1745383563616,0.09164,93092.0,93091.0,0.55484354]
[1745383568091,0.09164,93092.0,93091.0,0.34]
[1745383568942,0.09164,93092.0,93091.0,0.55484354]
[1745383571271,0.08464,93092.0,93091.0,0.55484354]
[1745383572752,0.08464,93092.0,93091.0,0.21484354]
[1745383574607,0.08464,93092.0,93089.0,0.0107424]
[1745383575005,0.08464,93092.0,93090.0,0.21484584]
[1745383575239,0.08464,93092.0,93089.0,0.0107424]
[1745383575908,0.08264,93092.0,93089.0,0.0107424]
[1745383576234,0.08464,93092.0,93089.0,0.0107424]
[1745383576450,0.08364,93092.0,93089.0,0.0107424]
[1745383576692,0.08464,93092.0,93089.0,0.0107424]
[1745383578960,0.07764,93092.0,93089.0,0.0107424]
[1745383579568,0.07764,93092.0,93089.0,0.22558984]
[1745383582121,0.07764,93092.0,93091.0,0.21484354]
[1745383582281,0.07764,93092.0,93089.0,0.22558984]
[1745383582953,0.07464,93092.0,93089.0,0.22558984]
[1745383583355,0.07764,93092.0,93089.0,0.22558984]
[1745383583689,0.07664,93092.0,93089.0,0.22558984]
[1745383583892,0.07864,93092.0,93089.0,0.22558984]
[1745383584123,0.07864,93092.0,93091.0,0.21484354]
[1745383586692,0.07164,93092.0,93091.0,0.21484354]
[1745383589261,0.06964,93092.0,93091.0,0.21484354]
[1745383589458,0.06864,93092.0,93091.0,0.21484354]
[1745383589812,0.001,93092.0,93091.0,0.21484354]
[1745383590639,0.0956,93093.0,93091.0,0.21484354]
[1745383591056,0.0956,93093.0,93091.0,0.21584354]
[1745383591460,0.002,93092.0,93091.0,0.21584354]
[1745383592211,0.002,93092.0,93091.0,0.21484354]
[1745383592551,0.0956,93093.0,93091.0,0.21584354]
[1745383593227,0.0956,93093.0,93091.0,0.21684354]
[1745383593549,0.0956,93093.0,93091.0,0.21484354]
[1745383593748,0.0956,93093.0,93091.0,0.21584354]
[1745383594291,0.0886,93093.0,93091.0,0.21584354]
[1745383596191,0.0886,93093.0,93091.0,0.001]
[1745383596336,0.0886,93093.0,93091.0,0.21584354]
[1745383602079,0.0816,93093.0,93091.0,0.21584354]
[1745383607314,0.0816,93093.0,93091.0,0.001]
[1745383607519,0.0474,93092.0,93091.0,0.001]
[1745383607719,0.26224123,93092.0,93091.0,0.001]
[1745383607918,0.41784428,93092.0,93091.0,0.001]
[1745383608595,0.01074275,93086.0,93081.0,0.35135381]
[1745383608800,0.00974275,93086.0,93081.0,0.35135381]
[1745383609433,0.05804217,93091.0,93081.0,0.36209714]
[1745383609639,0.01074229,93090.0,93081.0,0.36209714]
[1745383609819,0.05804217,93091.0,93081.0,0.36209714]
[1745383610021,0.001,93086.0,93081.0,0.36209714]
[1745383610458,0.003,93086.0,93081.0,0.35135381]
[1745383610630,0.003,93086.0,93081.0,0.36209714]
[1745383611183,0.003,93086.0,93082.0,0.01074321]
[1745383611788,0.0956,93085.0,93083.0,0.0107431]
[1745383611964,0.0956,93085.0,93084.0,0.34]
[1745383612763,0.0956,93085.0,93084.0,0.55485969]
[1745383612912,0.0956,93085.0,93082.0,0.01074321]
[1745383613116,0.0976,93085.0,93082.0,0.01074321]
[1745383613347,0.1006,93085.0,93082.0,0.01074321]
[1745383614573,0.0976,93085.0,93082.0,0.01074321]
[1745383614757,0.0956,93085.0,93082.0,0.01074321]
[1745383614958,0.0976,93085.0,93082.0,0.01074321]
[1745383615205,0.0986,93085.0,93082.0,0.01074321]
[1745383616033,0.0986,93085.0,93084.0,0.34]
[1745383617420,0.0916,93085.0,93084.0,0.34]
[1745383617621,0.0896,93085.0,93084.0,0.34]
[1745383617837,0.0886,93085.0,93084.0,0.34]
[1745383618056,0.0936,93085.0,93084.0,0.34]
[1745383619338,0.0886,93085.0,93084.0,0.34]
[1745383619582,0.0896,93085.0,93084.0,0.34]
[1745383620136,0.001,93085.0,93084.0,0.34]
[1745383620564,0.001,93085.0,93084.0,0.44830305]
[1745383620764,0.001,93085.0,93084.0,0.49720305]
[1745383620966,0.001,93085.0,93084.0,0.54270305]
[1745383622708,0.0956,93100.0,93099.0,0.21482507]
[1745383624579,0.0986,93100.0,93099.0,0.21482507]
[1745383625311,0.0946,93100.0,93099.0,0.21482507]
[1745383625582,0.17542048,93190.0,93143.0,0.05]
[1745383625795,0.001,93209.0,93208.0,0.21457385]
[1745383626001,0.047,93307.0,93208.0,0.21457385]
[1745383626002,0.001,93277.0,93236.0,0.21450941]
[1745383626203,1e-08,93249.0,93247.0,0.21448411]
[1745383626371,1e-08,93250.0,93249.0,0.60447951]